Cogmind - Beta 14 @@@ ROGUE MODE // 2024.08.22 @ 22:19:12 Player: Grem Result: Destroyed by S-10 Pest with Light Assault Rifle Performance ------------- Evolutions (1) 500 Regions Visited (2) 400 Robots Destroyed (9) 45 Value Destroyed (323) 323 Prototype IDs (0) 0 Alien Tech Used (0) 0 Bonus (0) 0 TOTAL SCORE: 1268 Bonus ------- None Cogmind --------- Core Integrity 0/400 Matter 409/500 Energy 100/100 System Corruption 0% Temperature Cool (0) Movement Core (100) Ox1 Location -9/Materials Parts ------- > --- POWER (1) -------- (None) > --- PROPULSION (3) --- (None) > --- UTILITY (2) ------ High-capacity Matter Pod Visual Processing Unit > --- WEAPON (3) ------- Light Assault Rifle Light Assault Rifle > --- INVENTORY (5) ---- Large Matter Pod (0) Structural Scanner Peak State ------------ > --- POWER ------------ Light Ion Engine > --- PROPULSION ------- Light Treads Light Treads Improved Aluminum Leg > --- UTILITY ---------- High-capacity Matter Pod Visual Processing Unit > --- WEAPON ----------- Particle Gun Heavy Assault Rifle > --- INVENTORY -------- Large Matter Pod [Rating: 12] Favorites ----------- Power Light Ion Engine Engine Light Ion Engine Propulsion Aluminum Leg Treads Light Treads Leg Aluminum Leg Hover Unit Hover Unit Utility High-capacity Matter Pod Device Heat Sink Storage High-capacity Matter Pod Processor Visual Processing Unit Weapon Assault Rifle Energy Gun Particle Gun Ballistic Gun Assault Rifle Special Melee Weapon Datajack Build | -11 -10 -9 ------- Run | Yrd Mat Mat Slots Evolved 2 | . . 2 Power . | . . . Propulsion 1 | . . 1 Utility . | . . . Weapon 1 | . . 1 Parts Attached 23 | 8 3 12 Power 1 | 1 . . Engine 1 | 1 . . Core . | . . . Reactor . | . . . Propulsion 9 | 4 . 5 Treads 2 | . . 2 Leg 6 | 4 . 2 Wheel . | . . . Hover 1 | . . 1 Flight . | . . . Utility 5 | 1 2 2 Device 1 | 1 . . Storage 3 | . 2 1 Processor 1 | . . 1 Hackware . | . . . Protection . | . . . Artifact . | . . . Weapon 8 | 2 1 5 Energy Gun 2 | 1 . 1 Energy Cannon . | . . . Ballistic Gun 5 | 1 . 4 Ballistic Cannon . | . . . Launcher . | . . . Special Weapon . | . . . Impact Weapon . | . . . Slashing Weapon . | . . . Piercing Weapon . | . . . Special Melee Weapon 1 | . 1 . Unidentified Prototypes . | . . . Parts Lost 11 | . . 11 Power 1 | . . 1 Propulsion 6 | . . 6 Utility . | . . . Weapon 4 | . . 4 Highest Loss Streak 3 | . . 3 To Critical Strikes . | . . . Average Slot Usage (%) 81 | . 89 78 Engine 10 | . 14 9 Treads 3 | . . 4 Leg 18 | . 28 14 Hover 2 | . . 3 Device 9 | . 14 7 Storage 9 | . 6 11 Processor 2 | . . 3 Energy Gun 6 | . . 9 Ballistic Gun 12 | . 14 12 Special Melee Weapon 4 | . 11 2 Peak Build Rating 12 | 5 7 12 Average Rating 7 | 3 6 8 On Entrance 4 | . 5 7 Naked Turns . | . . . Heaviest Build 16 | 6 11 16 Greatest Support 40 | 3 20 40 Greatest Overweight (x) 4 | 1 2 4 Average Overweight (x) . | . . . Largest Inventory Capacity 5 | 5 5 5 Average Capacity 5 | 5 5 5 Most Carried 5 | 5 3 2 Average Carried . | . . . Final Capacity 5 | 5 5 5 Final Carried 2 | . . 2 Class Distribution -------------------- 93% | Mutant 6% | Skirmisher Dominant Class ---------------- Mutant | -10/Materials Mutant | -9/Materials Resources | -11 -10 -9 ----------- Run | Yrd Mat Mat Matter Collected 593 | 277 46 270 Remotely . | . . . Salvage Created 362 | 32 . 330 Parts 22 | 2 . 20 Haulers Intercepted . | . . . Recyclers Shooed . | . . . Parts Field Recycled . | . . . Retrieved Matter . | . . . Parts Self-Destructed . | . . . Prevented . | . . . Kills | -11 -10 -9 ------- Run | Yrd Mat Mat Combat Hostiles Destroyed 8 | 1 . 7 Melee 1 | . . 1 Guns 7 | 1 . 6 Classes Destroyed 3 | 1 . 2 Watcher 1 | . . 1 Grunt 6 | 1 . 5 Sentry 2 | . . 2 Best Kill Streak 2 | 1 . 2 Combat Bots Only 2 | 1 . 2 Max Kills in Single Turn 2 | 1 . 2 Gunslinging 1 | . . 1 Exploded . | . . . Melee 1 | . . 1 Uniques/NPCs Destroyed . | . . . Combat | -11 -10 -9 -------- Run | Yrd Mat Mat Hostile Shots Fired 151 | 9 . 142 Missed 34 | 4 . 30 Damage Taken 1510 | 55 . 1455 Core 404 | . . 404 Absorbed by Shields . | . . . Regen/Repaired (Parts) 18 | . . 18 Core Remaining (%) 100 | 100 100 . Volleys Fired 61 | 9 6 46 Largest 3 | 1 1 3 Hottest 85 | 20 20 85 Shots Fired 78 | 9 6 63 Gun 78 | 9 6 63 Cannon . | . . . Launcher . | . . . Special . | . . . Kinetic 57 | 9 6 42 Thermal 21 | . . 21 Explosive . | . . . Electromagnetic . | . . . Robot Hit Streak 12 | 5 1 12 Robot Miss Streak 3 | 1 2 3 Penetration Max . | . . . Secondary Targets 1 | . . 1 Max Gunslinging Chain 1 | . . 1 Shots Hit Robots 54 | 7 2 45 Core Hits 18 | 2 . 16 Critical Kills 1 | . . 1 Critical Parts Destroyed . | . . . Critical Strikes 2 | . . 2 Burn 1 | . . 1 Destroy 1 | . . 1 Melee Attacks . | . . . Impact . | . . . Slashing . | . . . Piercing . | . . . Sneak Attacks . | . . . Combat Hostiles . | . . . Follow-up Attacks . | . . . Damage Inflicted 702 | 90 27 585 Guns 696 | 90 27 579 Cannons . | . . . Explosions . | . . . Melee . | . . . Ramming 6 | . . 6 Kinetic 476 | 90 27 359 Thermal 220 | . . 220 Explosive . | . . . Electromagnetic . | . . . Impact . | . . . Slashing . | . . . Piercing . | . . . Highest Corruption . | . . . Average Corruption . | . . . Corruption Purged . | . . . Corruption Blocked . | . . . Overload Shots . | . . . Overflow Damage . | . . . Projectiles . | . . . Explosions . | . . . Melee . | . . . Knockbacks . | . . . Impact . | . . . Kinetic . | . . . Secondary . | . . . Self-Inflicted Damage 1 | . . 1 Shots . | . . . Rammed 5 | . . 5 Targets Rammed 6 | . . 6 Kicked 1 | . . 1 Crushed . | . . . Highest Temperature 98 | . . 98 Average Temperature 27 | . . 27 Received Heat Transfer 660 | 30 . 630 Siege Activations . | . . . Robots Corrupted . | . . . Combat Hostiles . | . . . Parts Fried . | . . . Impact Corruptions . | . . . Robots Melted . | . . . Combat Hostiles . | . . . Parts Melted 1 | . . 1 Heat Transferred 592 | . . 592 Parts Sabotaged . | . . . Parts Stolen . | . . . Parts Stripped . | . . . Power Chain Reactions . | . . . Alert | -11 -10 -9 ------- Run | Yrd Mat Mat Peak Influence 143 | 20 43 143 Initial 17 | . 13 17 Average 38 | 4 33 46 Maximum Alert Level . | . . . Low Security (%) 100 | 100 100 100 Level 1 . | . . . Level 2 . | . . . Level 3 . | . . . Level 4 . | . . . Level 5 . | . . . High Security . | . . . Max Security . | . . . Squads Dispatched 1 | . . 1 Investigation 1 | . . 1 Extermination . | . . . Reinforcement . | . . . Assault . | . . . Garrison . | . . . Intercept . | . . . Searches Triggered . | . . . Construction Impeded . | . . . Haulers Reinforced . | . . . Active Scanning Responses . | . . . Cargo Convoy Interrupts . | . . . Stealth | -11 -10 -9 --------- Run | Yrd Mat Mat Distress Signals 1 | . . 1 Communications Jammed . | . . . Distress Signals . | . . . Times Spotted 18 | 1 3 14 Peak Tracking Total 4 | 1 1 4 Tactical Retreats 1 | . . 1 Traps | -11 -10 -9 ------- Run | Yrd Mat Mat Traps Triggered . | . . . Indirectly . | . . . Trap Hack Attempts . | . . . Triggered . | . . . Disarmed . | . . . Reprogrammed . | . . . Reused . | . . . Traps Extracted . | . . . Installed . | . . . Triggered . | . . . Machines | -11 -10 -9 ---------- Run | Yrd Mat Mat Machines Disabled . | . . . Max in Single Turn . | . . . Machines Repaired . | . . . Machines Dismantled . | . . . Machines Sabotaged . | . . . Overloaded Fab Kills . | . . . Hacking | -11 -10 -9 --------- Run | Yrd Mat Mat Machines Accessed 8 | . 3 5 Terminals 6 | . 2 4 Fabricators . | . . . Repair Stations 1 | . . 1 Recycling Units 1 | . 1 . Scanalyzers . | . . . Garrison Access . | . . . Total Hacks 22 | . 9 13 Successful 17 | . 6 11 Failed 5 | . 3 2 Catastrophic 1 | . . 1 Database Lockouts . | . . . Manual . | . . . Terminals 13 | . 4 9 Fabricators . | . . . Repair Stations 4 | . . 4 Recycling Units 5 | . 5 . Scanalyzers . | . . . Garrison Access . | . . . Terminal Hacks 9 | . 2 7 Record 2 | . . 2 Emergency Access Points 2 | . . 2 Alert Level 3 | . 1 2 Dispatch Records 1 | . . 1 Zone Layout 1 | . 1 . Fabricator Hacks . | . . . Repair Station Hacks 4 | . . 4 Scan Component 3 | . . 3 Repair 1 | . . 1 Recycling Unit Hacks 4 | . 4 . Recycle Component 1 | . 1 . Process 2 | . 2 . Report Inventory 1 | . 1 . Scanalyzer . | . . . Garrison Access Hacks . | . . . Unauthorized Hacks . | . . . Terminals . | . . . Fabricators . | . . . Repair Stations . | . . . Recycling Units . | . . . Scanalyzers . | . . . Garrison Access . | . . . Data Cores Recovered . | . . . Used . | . . . Hacking Detections 6 | . 2 4 Full Trace Events 3 | . 2 1 Feedback Events . | . . . Feedback Blocked . | . . . Robot Schematics Acquired . | . . . Robots Built . | . . . Authchips . | . . . Time . | . . . Total Robot Build Rating . | . . . Part Schematics Acquired . | . . . Parts Built . | . . . Authchips . | . . . Time . | . . . Total Part Build Rating . | . . . Parts Repaired 1 | . . 1 Time 26 | . . 26 Parts Recycled 1 | . 1 . Recycled Matter . | . . . Retrieved Matter . | . . . Retrieved Components . | . . . Parts Scanalyzed . | . . . Part Schematics Acquired . | . . . Parts Damaged . | . . . Bothacking | -11 -10 -9 ------------ Run | Yrd Mat Mat Used RIF Installer . | . . . Robots Hacked . | . . . Non-combat . | . . . Combat . | . . . Robot Hacks Applied . | . . . Relay Couplers Released . | . . . Fabnet Peak Effective % . | . . . Robots Rewired . | . . . Allies Hacked . | . . . Hacks Repelled . | . . . Allies | -11 -10 -9 -------- Run | Yrd Mat Mat Total Allies . | . . . Largest Group . | . . . Highest-Rated Group . | . . . Highest-Rated Ally . | . . . Total Orders . | . . . Ally Attacks . | . . . Total Damage . | . . . Kills . | . . . Allies Corrupted . | . . . Allies Melted . | . . . Intel | -11 -10 -9 ------- Run | Yrd Mat Mat Robot Analysis Total . | . . . Derelict Logs Recovered . | . . . Drone Launches . | . . . Drone Recoveries . | . . . Exploration | -11 -10 -9 ------------- Run | Yrd Mat Mat Turns Passed 1048 | 102 288 658 Spaces Moved 624 | 87 212 325 Core 225 | 87 113 25 Treads 121 | . . 121 Legs 203 | . 99 104 Wheels . | . . . Hover 75 | . . 75 Flight . | . . . Fastest Speed 50 | 50 100 100 Average Speed 133 | 70 125 155 Slowest Speed 250 | 100 150 250 Overloaded Moves . | . . . Propulsion Burnouts . | . . . Robots Hopped . | . . . Cave-ins Triggered . | . . . Exploration Rate (%) 27 | 7 39 36 Regions Visited 2 Branch Regions . Pre-discovered Areas . | . . . Known Exits Taken . | . . . Unknown Exits Taken 2 | 1 1 . Scrap Searched . | . . . Spaces Dug . | . . . Terrain Destroyed . | . . . Melee . | . . . Projectile . | . . . AOE . | . . . Terrain Rammed . | . . . Walls Destroyed . | . . . Machines Disabled . | . . . Actions | -11 -10 -9 --------- Run | Yrd Mat Mat Total 775 | 121 229 425 Wait 12 | . . 12 Move 622 | 86 211 325 Hop . | . . . Pick Up 34 | 11 6 17 Fast Attach . | . . . Attach 21 | 7 2 12 Detach 2 | 1 . 1 Swap 2 | 1 1 . Drop 15 | 6 3 6 Fire 61 | 9 6 46 Melee . | . . . Ram 5 | . . 5 Kick 1 | . . 1 Crush . | . . . Escape Stasis . | . . . Rewire . | . . . Trap . | . . . Miscellaneous . | . . . Route ------- -11/Scrapyard -10/Materials (discovered 2 exits: *Mat / [*Min]) -9/Materials History --------- Turn | Location | Event 2 | -11/Scrapyard | Met Revision 17 60 | -11/Scrapyard | Discovered new exit (range 8) 103 | -11/Scrapyard | Entered Materials 286 | -10/Materials | Discovered new exit (range 14) 315 | -10/Materials | Build established: Mutant 369 | -10/Materials | Discovered new exit (range 3) 391 | -10/Materials | Entered another Materials area 391 | -9/Materials | Evolved 2 slots: Propulsion x1, Weapon x1 761 | -9/Materials | Core integrity fell below 50% 869 | -9/Materials | Repaired Heat Sink? 962 | -9/Materials | Core integrity fell below 20% 994 | -9/Materials | Lost 3 parts (1p1n1w) 1049 | -9/Materials | Destroyed by S-10 Pest with Light Assault Rifle Last Messages --------------- K-01 Serf cleans the Electrolysis Chamber. Imp. Aluminum Leg destroyed. K-01 Serf cleans the Electrolysis Chamber. Lgt. Treads destroyed. G-34 Mercenary destroyed. Switching to secondary target: G-34 Mercenary. G-34 Mercenary destroyed. K-01 Serf collects debris. Acquired Particle Gun. Dropped Particle Gun. K-01 Serf collects debris. Acquired 39 matter. K-01 Serf collects debris. Acquired 38 matter. K-01 Serf collects debris. Acquired Structural Scanner. K-01 Serf cleans the Electrolysis Chamber. Lgt. Assault Rifle destroyed. K-01 Serf cleans the Electrolysis Chamber. [Achievement: First Step to Greatness] Map ----- +----------------------------------------------------+ | ????????????# #???# #????# """ | | ????????#########+######### ###### """ | | ????????# # / """ | | ????????# # #########T##### | | ????????# # #???????###???# """ | | ????????# += #?????????????# """ | | ????????# !! #%= #?????????????# """ | | ????????# !! # #?????????????# | | ????????######## #????????????########+ | | ???????????????# #?????????# | | ???????????????# #?????????# | | ???????????????# #?????????# | | ???????????????# #?????????# | | ???????????????# #?????????# | | ???????????????# #?????????# """" " | | ???????????????# #######+### """" " | | ???????????????# ! [ """" " | | ???????????????# ==[*[ | | ???????????????# = [ | | ??????########## #####+########? | | ??????# ] # k #?????????????? | | ??????# # """ #?????????????? | | ??????# ! # """ #?????????????? | | ??????# ! # """k #?????????????? | | ??????# + ss +?????????????? | | ??????# """"" #@s #?????????????? | | ??????# """"" ### """ ##?????????##### | | ??????# """"" #?# """ #??????????# | | ??????# #?# """ #??????????# | | ??????##########?# #??????????# | | ????????????????? #??????????# | | ?????????????????## ####/#??????????# "T | | ??????????????????? #??? ??????????# | | ??????????????????? #????? ?????????##### | | ??????????????????? #?????? ????????????? | | ??????????????????? #???????????????????? | | ??????????????????? ?????????????####### | | ??????????????????? ?????? | | ???????????????????? ?????????????####### | | ????????????????????#???????????????????? | | ????????????????????????????????????????? | | ????????????????????????????????????????? | | ????????????????????????????????????????? | | ????????????????????????????????????????? | | ????????????????????????????????????????? | | ????????????????????????????????????????? | | ????????????????????????????????????????? | | ????????????????????????????????????????? | | ????????????????????????????????????????? | | ????????????????????????????????????????? | +----------------------------------------------------+ Best States ------------- Heat Dissipation 38 Energy Generation 10 Energy Capacity 125 Matter Stores 412 Matter Capacity 650 Sight Range 18 Terrain Scan Density 10 Evasion (%) 55 Recoil Reduction 2 Item Schematics ----------------- None Robot Schematics ------------------ None Fabricated ------------ Nothing Alien Tech Used ----------------- None Achievements -------------- Crack Shot First Step to Greatness One Hack Too Far Part-time Mechanic Challenges ------------ None Game ------ Seed LauncherDiametricMount Manual? 0 Play Time 00:39:11 Cumulative 0.6 hours Start 2024.08.22 @ 21:29:03 End 2024.08.22 @ 22:19:12 Sessions 1 Manual Loads 0 Difficulty Rogue Special Mode None Game No. 1 Rogue 1 Adventurer 0 Explorer 0 Win Type - Total 0 Types 0/0/0/0/0/0/0/0/0 Lore% 0 Gallery% 1 Achievement% 1 Wizard Run 0 Options --------- Layout 1 ASCII 0 Keyboard 0 Movement Vi Keybinds 0 Fullscreen 2 Font 32/SmallcapsGlow Map View 50x35 Zoom Use 0% Tactical HUD 0 Map Filters NONE Filters NONE Steam 1 RUN: 51ea1925-c7cc-4f1a-862a-f32418716361